bitfinex-derivatives/quotes_SOLF0:USTF0_20251107
["timestamp","ask_amount","ask_price","bid_price","bid_amount"]
[1762476543270,3.15,157.04,157.0,0.04742098]
[1762476544693,3.15,157.08,157.0,0.04742098]
[1762476544879,3.15,157.08,157.0,3.21742098]
[1762476545475,8.8829,157.08,157.0,3.21742098]
[1762476545676,3.15,157.08,157.0,3.21742098]
[1762476545983,3.15,157.08,157.0,0.04742098]
[1762476546171,3.15,157.04,157.0,0.04742098]
[1762476546374,3.15,157.04,157.0,0.04571096]
[1762476546571,3.15,157.01,156.91,3.17]
[1762476547774,0.0422318,156.98,156.94,0.04569173]
[1762476548678,0.0422318,156.98,156.95,3.17]
[1762476548978,0.0422318,156.98,156.94,5.78329173]
[1762476548979,3.1922318,156.98,156.94,0.04569173]
[1762476549180,8.9287318,156.98,156.94,0.04569173]
[1762476549590,0.0422318,156.98,156.94,3.21569173]
[1762476549982,5.7331,157.08,156.97,3.17]
[1762476550190,3.15,157.09,157.0,3.17]
[1762476550378,3.15,157.17,157.04,3.17]
[1762476550585,3.01,157.16,157.04,3.17]
[1762476551186,3.01,157.16,157.08,0.04763712]
[1762476551781,3.01,157.14,157.08,0.04763712]
[1762476552385,10.31237127,157.11,157.08,0.04763712]
[1762476552587,3.01,157.1,157.08,0.04763712]
[1762476552893,3.01,157.08,157.0,2.92]
[1762476553188,3.01,157.08,156.96,272.31264521]
[1762476553382,3.01,157.08,156.97,2.92]
[1762476553786,0.04234977,157.04,157.01,0.04757335]
[1762476554094,3.05234977,157.04,157.01,0.04757335]
[1762476556691,0.04234977,157.04,157.01,0.04757335]
[1762476558192,3.01,157.03,157.01,0.04757335]
[1762476558997,0.04234977,157.04,157.01,0.04757335]
[1762476559894,3.05234977,157.04,157.01,0.04757335]
[1762476561002,0.04234977,157.04,157.01,0.04757335]
[1762476561193,0.04234977,157.04,157.01,2.96757335]
[1762476561393,0.04234977,157.04,157.01,0.04757335]
[1762476561898,0.04234977,157.04,157.01,2.96757335]
[1762476563395,3.05234977,157.04,157.01,0.04757335]
[1762476563798,3.01,157.03,156.93,2.92]
[1762476563999,8.7452,157.02,156.93,2.92]
[1762476564200,3.01,157.02,156.93,2.92]
[1762476564606,5.7356,157.01,156.93,2.92]
[1762476564903,3.01,157.02,156.95,2.96600834]
[1762476564904,0.04357607,156.99,156.95,2.96600834]
[1762476565092,3.05357607,156.99,156.95,0.04600834]
[1762476565499,0.04357607,156.99,156.95,2.96600834]
[1762476565906,0.04357607,156.99,156.95,8.70320834]
[1762476566202,0.04357607,156.99,156.96,2.92]
[1762476566406,0.04357607,156.99,156.95,0.04600834]
[1762476566706,0.04357607,156.99,156.95,2.96600834]
[1762476567612,3.01,157.09,156.96,2.92]
[1762476567916,7.53044987,157.08,156.96,2.92]
[1762476568110,4.52044987,157.07,156.96,2.92]
[1762476568408,4.52044987,157.06,156.96,2.92]
[1762476568609,3.01,157.09,156.97,2.92]
[1762476568809,13.26723489,157.08,157.01,0.04846758]
[1762476569010,4.52423489,157.07,157.03,0.04800113]
[1762476569215,7.58248306,157.06,157.03,0.04800113]
[1762476569410,4.52423489,157.05,157.03,0.04286193]
[1762476569605,3.05103505,157.06,157.03,0.04286193]
[1762476569805,7.53918112,157.05,157.03,0.04286193]
[1762476570014,4.52949118,157.04,157.03,0.04286193]
[1762476570221,7.53949118,157.04,157.03,0.04286193]
[1762476570708,5.735,157.02,156.95,2.92]
[1762476570907,4.52949118,157.01,156.95,2.92]
[1762476571206,4.53615945,157.0,156.95,2.92]
[1762476571411,5.735,157.02,156.95,2.92]
[1762476571712,0.04411632,157.0,156.97,0.04308272]
[1762476572809,0.04411632,157.0,156.97,2.96308272]
[1762476573717,3.05411632,157.0,156.97,0.04308272]
[1762476573918,0.04411632,157.0,156.97,0.04308272]
[1762476574319,4.55018836,156.99,156.97,0.04308272]
[1762476574620,0.04411632,157.0,156.97,0.04308272]
[1762476574819,4.5506177,156.99,156.97,0.04308272]
[1762476575115,3.05411632,157.0,156.97,0.04308272]
[1762476575320,7.56192868,156.99,156.97,0.04308272]
[1762476575512,4.55192868,156.98,156.97,0.04308272]
[1762476576610,0.04411632,157.0,156.97,2.96308272]
[1762476576810,7.30237127,157.11,156.98,2.92]
[1762476577019,5.7337,157.06,156.98,8.62914047]
[1762476577225,4.53765603,157.05,156.98,8.62914047]
[1762476577519,4.53765603,157.04,156.98,14.36534047]
[1762476577822,4.5816518,157.03,156.99,3.21597147]
[1762476578009,0.04399577,157.03,156.99,3.21597147]
[1762476578211,7.69026404,157.02,156.99,0.04597147]
[1762476578411,4.54026404,157.01,156.99,0.04597147]
[1762476578617,4.54026404,157.0,156.99,0.04597147]
[1762476579217,7.69026404,157.0,156.99,0.04597147]
[1762476579407,4.54026404,157.0,156.99,0.04597147]
[1762476581320,0.04399577,157.03,156.99,3.08597147]
[1762476581523,4.54441463,157.02,156.99,3.08597147]
[1762476581723,0.04399577,157.03,157.0,3.04]
[1762476582327,0.04399577,157.03,156.99,3.08597147]
[1762476582514,0.04399577,157.03,156.99,8.79511194]
[1762476582719,0.04399577,157.03,157.0,8.74914047]
[1762476582919,0.04399577,157.03,157.01,3.04]
[1762476583323,0.04399577,157.03,157.01,8.7751]
[1762476584221,0.04399577,157.03,157.0,5.70914047]
[1762476584421,0.04399577,157.03,156.99,0.04597147]
[1762476584723,4.54635232,157.02,156.99,0.04597147]
[1762476584925,0.04399577,157.03,156.99,0.04597147]
[1762476585224,7.75654354,157.02,156.99,0.04597147]
[1762476585418,4.54654354,157.01,156.99,0.04597147]
[1762476585621,3.21,157.02,156.99,0.04597147]
[1762476585926,4.54768565,157.01,156.99,0.04597147]
[1762476586126,3.21,157.02,156.99,0.04597147]
[1762476586326,4.54811964,157.01,156.99,0.04597147]
[1762476586523,3.21,157.02,156.99,0.04597147]
[1762476586730,7.75811964,157.01,156.99,0.04597147]
[1762476587025,7.75811964,157.0,156.99,0.04597147]
[1762476588227,4.54811964,157.0,156.99,0.04597147]
[1762476589020,0.04399577,157.03,156.99,0.04597147]
[1762476589223,7.75837165,157.02,156.99,0.04597147]
[1762476589522,4.54837165,157.01,156.99,0.04597147]
[1762476589825,4.54837165,157.0,156.99,0.04597147]
[1762476591729,0.04399577,157.03,157.0,3.04]
[1762476592531,0.04399577,157.03,157.01,5.7351]
[1762476592829,0.04399577,157.03,156.99,0.04597147]
[1762476592830,3.25399577,157.03,156.99,0.04597147]
[1762476593024,7.75725993,157.02,156.99,0.04597147]
[1762476593224,4.54878386,157.01,156.99,0.04597147]
[1762476593419,0.04399577,157.03,156.99,0.04597147]
[1762476593620,4.54878325,157.02,156.99,5.78177147]
[1762476593831,4.54878325,157.01,156.99,0.04597147]
[1762476594031,3.25399577,157.03,156.99,0.04597147]
[1762476594329,3.21,157.01,156.99,0.04597147]
[1762476594632,7.75923824,157.0,156.99,0.04597147]
[1762476595828,8.9464,156.99,156.92,5.70914047]
[1762476596132,4.54923824,156.98,156.92,5.70914047]
[1762476596333,4.54923824,156.97,156.92,8.74914047]
[1762476596635,4.54923824,156.96,156.93,5.70914047]
[1762476596836,0.04709087,156.96,156.93,5.75382493]
[1762476597134,3.21,156.94,156.93,0.04468446]
[1762476597433,3.21,156.93,156.87,5.70914047]
[1762476597634,4.55523089,156.92,156.86,5.70914047]
[1762476597824,4.55523089,156.91,156.86,8.74914047]
[1762476598137,4.55523089,156.9,156.87,3.04]
[1762476598433,0.04070033,156.9,156.87,0.04295281]
[1762476599334,3.25070033,156.9,156.87,0.04295281]
[1762476601538,3.25070033,156.9,156.81,4.28561558]
[1762476601539,3.21,156.88,156.8,5.70914047]
[1762476601738,3.21,156.85,156.78,5.70914047]
[1762476601948,3.21,156.83,156.77,5.70914047]
[1762476602134,3.21,156.83,156.75,5.70914047]
[1762476602440,3.21,156.81,156.72,8.74914047]
[1762476602642,3.21,156.81,156.74,5.70914047]
[1762476602842,0.04461979,156.78,156.75,3.08622474]
[1762476603738,0.04461979,156.78,156.75,0.04622474]
[1762476604847,3.25461979,156.78,156.75,0.04622474]
[1762476605640,0.04461979,156.78,156.75,0.04622474]
[1762476605844,0.04461979,156.78,156.75,3.08622474]
[1762476606043,3.25461979,156.78,156.75,0.04622474]
[1762476606548,0.04461979,156.78,156.75,0.04622474]
[1762476607143,3.25461979,156.78,156.75,0.04622474]
[1762476607445,3.25461979,156.78,156.67,3.04]
[1762476607648,3.21,156.77,156.67,3.04]
[1762476607848,3.21,156.76,156.67,8.7874]
[1762476608545,0.04543616,156.73,156.7,3.08441731]
[1762476608750,0.04543616,156.73,156.7,0.04441731]
[1762476608949,0.04543616,156.73,156.72,3.04]
[1762476609457,0.04543616,156.73,156.71,8.786]
[1762476609650,3.21,156.84,156.75,5.7448]
[1762476610041,3.21,156.84,156.73,3.04]
[1762476610246,3.21,156.83,156.74,5.7448]
[1762476610646,0.04686588,156.8,156.77,0.04112822]
[1762476610948,3.23686588,156.8,156.77,0.04112822]
[1762476612150,1.32686588,156.8,156.66,12.38]
[1762476612351,3.19,156.78,156.65,2.93]
[1762476612549,3.19,156.75,156.64,276.91260591]
[1762476612755,3.19,156.68,156.57,7.21561558]
[1762476613149,3.19,156.68,156.57,2.93]
[1762476613349,3.19,156.63,156.61,0.04639811]
[1762476613946,3.19,156.63,156.53,2.93]
[1762476614550,3.19,156.63,156.55,4.28561558]
[1762476614749,3.19,156.68,156.57,8.6811]
[1762476615048,0.0461596,156.64,156.61,0.04123305]
[1762476615245,0.0461596,156.64,156.61,2.97123305]
[1762476615449,0.0461596,156.64,156.61,0.04123305]
[1762476616058,0.0461596,156.64,156.61,8.72093305]
[1762476616655,0.0461596,156.64,156.61,2.97123305]
[1762476616858,0.0461596,156.64,156.61,0.04123305]
[1762476619250,0.0461596,156.64,156.62,2.93]
[1762476619454,3.19,156.72,156.63,7.21561558]
[1762476619860,3.19,156.72,156.65,5.7481]
[1762476620058,3.19,156.72,156.64,2.93]
[1762476620464,0.04544709,156.7,156.66,0.04738196]
[1762476620652,0.04544709,156.7,156.66,0.04279395]
[1762476620852,0.04544709,156.7,156.66,8.72069395]
[1762476621162,0.04544709,156.7,156.66,2.97279395]
[1762476621866,0.04544709,156.7,156.67,8.6774]
[1762476622265,3.23544709,156.7,156.66,0.04279395]
[1762476623066,3.19,156.69,156.57,2.93]
[1762476623258,3.19,156.68,156.57,2.93]
[1762476623471,3.19,156.67,156.57,2.93]
[1762476624062,4.28561558,156.73,156.6,0.04287736]
[1762476624063,3.19,156.63,156.6,0.04287736]
[1762476624261,3.23331024,156.63,156.6,0.04110082]
[1762476624466,0.04331024,156.63,156.6,2.97110082]
[1762476625457,0.04331024,156.63,156.6,0.04110082]
[1762476627166,0.04331024,156.63,156.6,2.97110082]
[1762476627461,0.04331024,156.63,156.6,0.04110082]
[1762476629368,0.04331024,156.63,156.6,8.72110082]
[1762476629666,0.04331024,156.63,156.62,2.93]
[1762476631161,3.19,156.71,156.63,5.7491]
[1762476631571,3.19,156.71,156.62,2.93]
[1762476631761,3.19,156.71,156.66,8.6778]
[1762476632165,0.04547441,156.7,156.67,0.04360484]
[1762476632563,0.04547441,156.7,156.67,5.79110484]
[1762476633964,0.04547441,156.7,156.69,2.93]
[1762476635363,0.04547441,156.7,156.67,7.25922042]
[1762476635864,0.04547441,156.7,156.68,8.6772]
[1762476636067,0.04547441,156.7,156.68,5.7472]
[1762476637468,0.04547441,156.7,156.69,2.93]
[1762476638368,0.04547441,156.7,156.67,0.04360484]
[1762476638567,0.04547441,156.7,156.67,3.13360484]
[1762476639171,0.04547441,156.7,156.67,8.88110484]
[1762476641271,0.04547441,156.7,156.67,5.79110484]
[1762476642068,3.03547441,156.7,156.67,0.04360484]
[1762476642666,0.04547441,156.7,156.67,0.04360484]
[1762476642872,0.04547441,156.7,156.67,2.98360484]
[1762476644674,0.04547441,156.7,156.68,2.94]
[1762476645382,0.04547441,156.7,156.68,8.6872]
[1762476645682,0.04547441,156.7,156.68,5.7472]
[1762476646184,0.04547441,156.7,156.67,0.04360484]
[1762476646480,0.04547441,156.7,156.67,2.98360484]
[1762476647476,2.99,156.78,156.69,2.94]
[1762476647680,2.99,156.78,156.72,2.94]
[1762476648271,2.99,156.82,156.72,2.94]
[1762476648478,0.04624831,156.79,156.75,2.98654055]
[1762476652483,2.99,156.9,156.78,2.94]
[1762476653180,2.99,156.9,156.8,2.94]
[1762476653381,3.03785347,156.87,156.83,0.0448653]
[1762476653580,2.99,156.87,156.8,2.94]
[1762476653780,3.03307837,156.87,156.83,0.04252917]
[1762476655280,2.99,156.86,156.83,0.04252917]
[1762476655684,5.7413,156.85,156.83,0.04252917]
[1762476655886,8.7313,156.85,156.83,0.04252917]
[1762476656182,2.99,156.85,156.83,0.04252917]
[1762476656687,0.04307837,156.87,156.83,2.98252917]
[1762476657686,70.85289479,156.96,156.83,2.98252917]
[1762476657888,7.31289479,157.03,156.83,5.82485329]
[1762476658083,2.99,156.96,156.86,2.94]
[1762476658285,2.99,156.96,156.87,5.7402]
[1762476658691,2.99,156.96,156.86,2.94]
[1762476658891,2.99,156.93,156.82,10.25289479]
[1762476659090,0.04571751,156.89,156.86,0.04171788]
[1762476659591,3.03571751,156.89,156.86,0.04171788]
[1762476659989,2.99,156.88,156.86,0.04171788]
[1762476660297,0.04571751,156.89,156.86,0.04171788]
[1762476660792,3.03571751,156.89,156.86,0.04171788]
[1762476663484,2.99,156.87,156.77,2.94]
[1762476663690,2.99,156.87,156.7,62.0]
[1762476663691,2.99,156.87,156.74,2.94]
[1762476663890,2.99,156.86,156.7,2.94]
[1762476664290,2.99,156.8,156.7,2.94]
[1762476664597,3.03696332,156.77,156.73,0.04828127]
[1762476664790,3.03142506,156.77,156.73,0.04546953]
[1762476667996,2.99,156.76,156.73,0.04546953]
[1762476668189,0.04142506,156.77,156.73,0.04546953]
[1762476668394,3.03142506,156.77,156.73,0.04546953]
[1762476670694,0.04142506,156.77,156.73,3.09546953]
[1762476670999,0.04142506,156.77,156.76,3.05]
[1762476671202,3.02,156.85,156.76,3.05]
[1762476671898,3.02,156.84,156.7,3.05]
[1762476672287,3.0649742,156.79,156.75,0.04217409]
[1762476672491,3.06173679,156.79,156.75,0.04799111]
[1762476673399,0.04173679,156.79,156.75,3.09799111]
[1762476673601,0.04173679,156.79,156.75,8.84279111]
[1762476673802,3.06173679,156.79,156.75,0.04799111]
[1762476674896,0.04173679,156.79,156.75,3.09799111]
[1762476675499,0.04173679,156.79,156.75,8.84249111]
[1762476676299,0.04173679,156.79,156.76,3.05]
[1762476676804,0.04173679,156.79,156.78,3.05]
[1762476677103,5.7411,156.86,156.78,3.05]
[1762476677303,8.7611,156.86,156.78,3.05]
[1762476677802,3.02,156.86,156.79,3.05]
[1762476678201,0.04634982,156.84,156.81,8.83540891]
[1762476678395,0.04634982,156.84,156.82,3.05]
[1762476678704,3.06634982,156.84,156.81,0.04300891]
[1762476679698,3.06634982,156.84,156.73,3.05]
[1762476679902,3.02,156.84,156.73,3.05]
[1762476680099,5.7425,156.82,156.74,5.7451]
[1762476680402,8.7625,156.82,156.74,8.7951]
[1762476680801,3.06240755,156.8,156.76,0.04069529]
[1762476681106,0.04240755,156.8,156.76,3.09069529]
[1762476681307,0.04240755,156.8,156.76,0.04069529]
[1762476681308,3.06240755,156.8,156.76,0.04069529]
[1762476682404,0.04240755,156.8,156.76,3.09069529]
[1762476682600,3.02,156.91,156.77,3.05]
[1762476682804,3.02,156.95,156.82,3.05]
[1762476683107,3.02,156.91,156.78,5.82485329]
[1762476683399,3.02,156.91,156.78,3.05]
[1762476683599,3.06367718,156.86,156.83,0.04270619]
[1762476685003,0.04367718,156.86,156.83,0.04270619]
[1762476685306,3.06367718,156.86,156.83,0.04270619]
[1762476686902,0.04367718,156.86,156.83,0.04270619]
[1762476687207,3.06367718,156.86,156.83,0.04270619]
[1762476688203,0.04367718,156.86,156.83,0.04270619]
[1762476689100,0.04367718,156.86,156.83,3.09270619]
[1762476689703,0.04367718,156.86,156.85,3.05]
[1762476690308,5.7388,156.92,156.86,5.7407]
[1762476690499,3.02,156.92,156.82,3.05]
[1762476690901,5.7392,156.91,156.84,5.7413]
[1762476691106,5.7392,156.91,156.82,8.87485329]
[1762476691306,5.7392,156.91,156.85,0.04500471]
[1762476691507,3.02,156.92,156.85,5.78600471]
[1762476691708,3.02,156.92,156.85,0.04500471]
[1762476692105,8.7588,156.92,156.85,0.04500471]
[1762476692416,3.02,156.91,156.85,0.04500471]
[1762476692709,3.02,156.91,156.86,0.04399464]
[1762476693114,3.02,156.91,156.86,5.78449464]
[1762476693413,3.02,156.91,156.86,0.04399464]
[1762476696312,3.02,156.91,156.86,3.09399464]
[1762476697307,3.02,156.91,156.86,0.04399464]
[1762476697817,2.93,156.89,156.86,0.04399464]
[1762476698012,2.93,156.89,156.86,0.04333926]
[1762476699423,2.93,156.88,156.86,0.04333926]
[1762476700234,2.93,156.87,156.86,0.04333926]
[1762476702536,3.04,156.89,156.86,0.04333926]
[1762476702741,3.04,156.89,156.86,0.04460769]
[1762476708038,3.04,156.87,156.78,8.97765286]
[1762476708841,3.04,156.85,156.81,5.7425]
[1762476709139,3.08446859,156.85,156.81,5.79156376]
[1762476710442,3.08446859,156.85,156.81,0.04906376]
[1762476712439,3.04,156.84,156.81,0.04906376]
[1762476712737,3.04,156.84,156.73,5.86396687]
[1762476712935,3.04,156.79,156.72,8.99396687]
[1762476713139,3.04,156.79,156.72,3.13]
[1762476713638,0.04707857,156.77,156.74,0.0479708]
[1762476716341,0.04707857,156.77,156.74,3.1779708]
[1762476716943,0.04707857,156.77,156.74,8.9228708]
[1762476717334,3.08707857,156.77,156.74,0.0479708]
[1762476717747,0.04707857,156.77,156.74,3.1779708]
[1762476718538,3.08707857,156.77,156.74,0.0479708]
[1762476720345,0.04707857,156.77,156.74,3.1779708]
[1762476720550,10.22884184,156.88,156.74,1.3279708]
[1762476720850,3.04,156.87,156.79,3.13]
[1762476721039,3.04,156.87,156.79,8.99396687]
[1762476721239,3.04,156.85,156.75,5.86396687]
[1762476721441,3.04,156.82,156.72,5.86396687]
[1762476721647,0.04816041,156.79,156.75,3.17844582]
[1762476722849,3.08816041,156.79,156.75,0.04844582]
[1762476723245,3.04,156.78,156.75,0.04844582]
[1762476723857,3.04,156.77,156.75,0.04844582]
[1762476724056,0.04816041,156.79,156.75,0.04844582]
[1762476724359,3.08816041,156.79,156.75,0.04844582]
[1762476725047,8.83166041,156.79,156.75,0.04844582]
[1762476725243,3.08816041,156.79,156.75,0.04844582]
[1762476725444,0.04816041,156.79,156.75,3.17844582]
[1762476726058,3.08816041,156.79,156.75,0.04844582]
[1762476726557,3.04,156.76,156.67,5.86396687]
[1762476726759,3.04,156.76,156.66,11.61186687]
[1762476727057,23.4685831,156.81,156.66,11.61186687]
[1762476727058,3.04,156.73,156.66,11.61186687]
[1762476727455,0.04340344,156.71,156.68,0.04671286]
[1762476728152,0.04340344,156.71,156.68,3.17671286]
[1762476728353,3.08340344,156.71,156.68,0.04671286]
[1762476730855,0.04340344,156.71,156.68,3.13671286]
[1762476731160,3.27340344,156.71,156.68,0.04671286]
[1762476731459,3.23,156.67,156.61,3.09]
[1762476731847,3.23,156.67,156.58,5.86396687]
[1762476732053,3.23,156.66,156.58,11.61476687]
[1762476732561,0.04548177,156.64,156.6,0.04678356]
[1762476733653,0.04548177,156.64,156.6,3.13678356]
[1762476734055,3.27548177,156.64,156.6,0.04678356]
[1762476735262,3.23,156.61,156.6,0.04678356]
[1762476736965,0.04548177,156.64,156.6,0.04678356]
[1762476737158,3.27548177,156.64,156.6,3.13678356]
[1762476737757,3.27548177,156.64,156.6,0.04678356]
[1762476739758,0.04548177,156.64,156.6,3.13678356]
[1762476740862,3.27548177,156.64,156.6,3.13678356]
[1762476741658,0.04548177,156.64,156.61,3.09]
[1762476742766,0.04548177,156.64,156.62,7.3885831]
[1762476743069,3.23,156.7,156.63,3.09]
[1762476743363,39.96,156.74,156.63,3.09]
[1762476743364,43.19,156.74,156.63,3.09]
[1762476743568,8.9757,156.73,156.63,3.09]
[1762476743866,0.04326249,156.7,156.66,8.88395985]
[1762476745362,0.04326249,156.7,156.68,3.09]
[1762476745966,0.04326249,156.7,156.68,8.8372]
[1762476746164,0.04326249,156.7,156.66,3.13605985]
[1762476746361,3.27326249,156.7,156.66,0.04605985]
[1762476747575,0.04326249,156.7,156.66,3.13605985]
[1762476748160,3.27326249,156.7,156.66,0.04605985]
[1762476749676,3.23,156.69,156.66,0.04605985]
[1762476752176,3.23,156.67,156.66,0.04605985]
[1762476753686,3.23,156.64,156.56,8.93933039]
[1762476753980,3.23,156.64,156.56,3.09]
[1762476754169,3.23,156.63,156.58,5.7508]
[1762476754778,3.27247486,156.62,156.59,0.04912434]
[1762476755674,0.04247486,156.62,156.59,3.13912434]
[1762476756877,3.27247486,156.62,156.59,0.04912434]
[1762476759277,0.04247486,156.62,156.59,3.03912434]
[1762476759679,3.01247486,156.62,156.59,0.04912434]
[1762476762085,0.04247486,156.62,156.59,2.99912434]
[1762476762577,0.04247486,156.62,156.6,2.95]
[1762476762776,0.04247486,156.62,156.6,8.7002]
[1762476763080,3.12,156.71,156.61,2.95]
[1762476764074,3.16846847,156.68,156.64,0.04666356]
[1762476764275,3.16846847,156.68,156.64,0.04708158]
[1762476765475,8.91596847,156.68,156.64,0.04708158]
[1762476765779,3.16846847,156.68,156.64,0.04708158]
[1762476766183,3.12,156.67,156.64,0.04708158]
[1762476767179,3.12,156.65,156.64,0.04708158]
[1762476767380,3.12,156.67,156.64,0.04708158]
[1762476769080,3.12,156.65,156.64,0.04708158]
[1762476769790,3.12,156.67,156.64,0.04708158]
[1762476772077,8.8678,156.67,156.64,0.04708158]
[1762476772283,3.12,156.66,156.64,0.04708158]
[1762476772889,8.8683,156.66,156.64,0.04708158]
[1762476773186,3.12,156.65,156.64,0.04708158]
[1762476774387,3.12,156.67,156.64,0.04708158]
[1762476775492,3.16846847,156.68,156.64,2.99708158]
[1762476775787,3.16846847,156.68,156.64,0.04708158]
[1762476776582,3.16846847,156.68,156.64,8.74578158]
[1762476776778,0.04846847,156.68,156.65,2.95]
[1762476777184,0.04846847,156.68,156.67,2.95]
[1762476777682,0.04846847,156.68,156.66,5.748]
[1762476777885,6.02,156.75,156.71,5.7461]
[1762476778088,6.02,156.75,156.62,19.16097253]
[1762476778089,3.12,156.75,156.69,5.91569724]
[1762476778593,5.7453,156.74,156.68,5.91569724]
[1762476779183,3.16126661,156.73,156.69,0.04289934]
[1762476779383,3.16126661,156.73,156.69,0.04169699]
[1762476779791,3.12,156.71,156.69,0.04169699]
[1762476780694,8.8664,156.71,156.69,0.04169699]
[1762476780898,3.12,156.7,156.69,0.04169699]
[1762476781288,3.12,156.72,156.69,0.04169699]
[1762476781991,0.04126661,156.73,156.69,2.99169699]
[1762476782295,3.16126661,156.73,156.69,8.90739423]
[1762476782995,3.16126661,156.73,156.69,0.04169699]
[1762476783183,3.12,156.71,156.69,0.04169699]
[1762476783686,0.04126661,156.73,156.69,4.27169699]
[1762476783892,0.04126661,156.73,156.7,2.95]
[1762476784090,3.16126661,156.73,156.69,8.90739423]
[1762476784293,0.04126661,156.73,156.7,2.95]
[1762476784487,0.04126661,156.73,156.7,8.6965]
[1762476784991,0.04126661,156.73,156.69,5.95739423]
[1762476784992,3.16126661,156.73,156.69,0.04169699]
[1762476785991,0.04126661,156.73,156.69,2.99169699]
[1762476786194,3.16126661,156.73,156.69,0.04169699]
[1762476787599,0.04126661,156.73,156.69,2.99169699]
[1762476787898,1.11059695,156.79,156.72,2.95]
[1762476788194,3.12,156.79,156.72,5.90876815]
[1762476788397,3.12,156.79,156.7,5.90876815]
[1762476788595,3.12,156.79,156.69,5.90876815]
[1762476788900,8.8646,156.76,156.69,5.7468]
[1762476789102,0.02218512,156.74,156.71,2.99393367]
[1762476789301,0.02218512,156.74,156.71,8.74124605]
[1762476789600,3.14218512,156.74,156.71,0.04514605]
[1762476790591,8.88758512,156.74,156.71,0.04514605]
[1762476790902,3.03,156.73,156.71,0.04514605]
[1762476792395,8.7757,156.73,156.71,0.04514605]
[1762476793302,3.03,156.72,156.71,0.04514605]
[1762476793495,5.7464,156.71,156.65,5.7484]
[1762476793695,3.03,156.7,156.65,5.7484]
[1762476793896,3.03,156.7,156.64,5.90876815]
[1762476794097,3.03,156.68,156.63,8.849]
[1762476794294,3.03,156.68,156.64,3.1]
[1762476794499,3.07592258,156.68,156.64,3.1446883]
[1762476794899,3.07592258,156.68,156.64,0.0446883]
[1762476795802,0.04592258,156.68,156.65,3.1]
[1762476796002,0.04592258,156.68,156.64,8.8933883]
[1762476796706,0.04592258,156.68,156.65,3.1]
[1762476797007,3.07592258,156.68,156.64,0.0446883]
[1762476797402,3.03,156.67,156.64,0.0446883]
[1762476799606,5.79352258,156.68,156.64,0.0446883]
[1762476799607,0.04592258,156.68,156.64,3.1446883]
[1762476799805,3.07592258,156.68,156.64,0.0446883]
[1762476800401,3.03,156.67,156.64,0.0446883]
[1762476801607,0.04592258,156.68,156.64,3.1446883]
[1762476801903,3.07592258,156.68,156.64,3.1446883]
[1762476802703,3.07592258,156.68,156.64,8.8933883]
[1762476802909,0.04592258,156.68,156.64,8.8933883]
[1762476803107,0.04592258,156.68,156.64,3.1446883]
[1762476803511,3.07592258,156.68,156.64,3.1446883]
[1762476803812,3.03,156.66,156.64,0.0446883]
[1762476804701,3.03,156.67,156.64,0.0446883]
[1762476805214,8.7779,156.67,156.64,0.0446883]
[1762476805411,3.03,156.66,156.64,0.0446883]
[1762476805814,8.7782,156.66,156.64,0.0446883]
[1762476806514,3.03,156.66,156.64,0.0446883]
[1762476807115,8.7782,156.66,156.64,0.0446883]
[1762476807322,3.03,156.65,156.64,0.0446883]
[1762476807513,3.03,156.65,156.57,5.90876815]
[1762476808414,0.04757296,156.63,156.59,0.04503263]
[1762476808710,3.03,156.62,156.59,0.04503263]
[1762476809107,8.7797,156.62,156.59,0.04503263]
[1762476810313,0.04757296,156.63,156.59,3.14503263]
[1762476811222,0.04757296,156.63,156.61,3.1]
[1762476812216,0.04757296,156.63,156.62,3.1]
[1762476812421,3.03,156.7,156.62,3.1]
[1762476812917,3.03,156.67,156.59,5.90876815]
[1762476813122,3.03,156.67,156.59,9.00876815]
[1762476813317,3.03,156.67,156.61,0.04629817]
[1762476813523,0.04080583,156.65,156.62,3.1]
[1762476814022,0.04080583,156.65,156.62,8.8495]
[1762476814910,0.04080583,156.65,156.63,3.1]
[1762476815119,0.04080583,156.65,156.64,3.1]
[1762476816518,0.04080583,156.65,156.63,5.7491]
[1762476816824,0.04080583,156.65,156.64,3.1]